fUSD/lending_fUSD_20260108
["ID","MTS","AMOUNT","RATE_DAILY","PERIOD"]
[400928047,1767865099408,-185.90849551,0.00011688,2]
[400928048,1767865099436,-300.0,0.00011725,2]
[400928049,1767865099466,-1200.0,0.00011725,2]
[400928050,1767865099499,-334.1195652,0.00011726,2]
[400928051,1767865099531,-684.32874652,0.00011726,2]
[400928052,1767865099563,-485.59451374,0.00011726,2]
[400928053,1767865100301,-198.73423278,0.00011726,2]
[400928054,1767865100333,-684.32874652,0.00011726,2]
[400928055,1767865100363,-684.32874652,0.00011726,2]
[400928056,1767865100397,-684.32874652,0.00011726,2]
[400928057,1767865100429,-684.32874652,0.00011726,2]
[400928058,1767865100464,-684.32874652,0.00011726,2]
[400928059,1767865100497,-684.32874652,0.00011726,2]
[400928060,1767865100528,-684.32874652,0.00011726,2]
[400928061,1767865102817,-684.32874652,0.00011726,2]
[400928062,1767865102848,-977.61249503,0.00011726,2]
[400928063,1767865102879,-977.61249503,0.00011726,2]
[400928064,1767865102908,-977.61249503,0.00011726,2]
[400928065,1767865102938,-977.61249503,0.00011726,2]
[400928066,1767865103097,-977.61249503,0.00011726,2]
[400928067,1767865103128,-977.61249503,0.00011726,2]
[400928068,1767865103160,-977.61249503,0.00011726,2]
[400928069,1767865103191,-977.61249503,0.00011726,2]
[400928070,1767865103222,-977.61249503,0.00011726,2]
[400928071,1767865108474,-195.0,0.00011727,2]
[400928072,1767865108505,-200.0,0.00011727,2]
[400928073,1767865108538,-200.0,0.00011727,2]
[400928074,1767865108565,-200.0,0.00011727,2]
[400928075,1767865108592,-500.0,0.00011727,2]
[400928076,1767865108620,-151.0,0.00011727,2]
[400928077,1767865108649,-151.0,0.00011727,2]
[400928078,1767865108676,-151.0,0.00011727,2]
[400928079,1767865108705,-151.0,0.00011727,2]
[400928080,1767865108733,-151.0,0.00011727,2]
[400928081,1767865108762,-151.0,0.00011727,2]
[400928082,1767865108789,-151.0,0.00011727,2]
[400928083,1767865108818,-151.0,0.00011727,2]
[400928084,1767865109258,-151.0,0.00011727,2]
[400928085,1767865109286,-151.0,0.00011727,2]
[400928086,1767865109314,-151.0,0.00011727,2]
[400928087,1767865109342,-151.0,0.00011727,2]
[400928088,1767865109370,-151.0,0.00011727,2]
[400928089,1767865109401,-151.0,0.00011727,2]
[400928090,1767865109428,-151.0,0.00011727,2]
[400928091,1767865109459,-151.0,0.00011727,2]
[400928092,1767865109486,-151.0,0.00011727,2]
[400928093,1767865109513,-151.0,0.00011727,2]
[400928094,1767865109540,-151.0,0.00011727,2]
[400928095,1767865109568,-151.0,0.00011727,2]
[400928096,1767865109595,-151.0,0.00011727,2]
[400928097,1767865109627,-151.0,0.00011727,2]
[400928098,1767865109654,-151.0,0.00011727,2]
[400928099,1767865109682,-151.0,0.00011727,2]
[400928100,1767865109713,-11.01,0.00011727,2]
[400928101,1767865128603,-139.99,0.00011727,2]
[400928102,1767865128630,-151.0,0.00011727,2]
[400928103,1767865128658,-151.0,0.00011727,2]
[400928104,1767865128685,-151.0,0.00011727,2]
[400928105,1767865128712,-151.0,0.00011727,2]
[400928106,1767865128740,-151.0,0.00011727,2]
[400928107,1767865128767,-151.0,0.00011727,2]
[400928108,1767865142042,150.0,0.00011726,2]
[400928109,1767865143171,252.0,0.00011726,2]
[400928110,1767865149773,307.20078128,0.00011726,2]
[400928119,1767865163950,500.0,0.00011726,2]
[400928120,1767865163994,500.0,0.00011726,2]
[400928121,1767865164037,500.0,0.00011726,2]
[400928122,1767865164083,500.0,0.00011726,2]
[400928123,1767865164126,500.0,0.00011726,2]
[400928124,1767865164170,500.0,0.00011726,2]
[400928125,1767865164214,500.0,0.00011726,2]
[400928126,1767865164264,500.0,0.00011726,2]
[400928127,1767865164305,500.0,0.00011726,2]
[400928128,1767865164360,500.0,0.00011726,2]
[400928129,1767865164409,500.0,0.00011726,2]
[400928130,1767865164452,500.0,0.00011726,2]
[400928131,1767865164494,500.0,0.00011726,2]
[400928132,1767865164535,500.0,0.00011726,2]
[400928133,1767865164575,198.82921872,0.00011726,2]
[400928134,1767865164600,301.17078128,0.00011726,2]
[400928135,1767865164645,500.0,0.00011726,2]
[400928136,1767865164694,500.0,0.00011726,2]
[400928137,1767865164738,500.0,0.00011726,2]
[400928138,1767865164779,500.0,0.00011726,2]
[400928139,1767865164819,500.0,0.00011726,2]
[400928140,1767865164861,500.0,0.00011726,2]
[400928141,1767865164902,500.0,0.00011726,2]
[400928142,1767865164961,500.0,0.00011726,2]
[400928143,1767865165011,500.0,0.00011726,2]
[400928144,1767865165051,500.0,0.00011726,2]
[400928145,1767865165095,500.0,0.00011726,2]
[400928146,1767865165142,500.0,0.00011726,2]
[400928147,1767865165185,500.0,0.00011726,2]
[400928148,1767865165228,500.0,0.00011726,2]
[400928149,1767865165270,356.70826321,0.00011726,2]
[400928150,1767865165315,500.0,0.00011726,2]
[400928151,1767865165360,500.0,0.00011726,2]
[400928152,1767865165405,500.0,0.00011726,2]
[400928153,1767865165446,500.0,0.00011726,2]
[400928154,1767865165504,342.13095551,0.00011726,2]
[400928155,1767865165530,157.86904449,0.00011726,2]
[400928156,1767865186186,6180.812,0.00011627,2]
[400928157,1767865199340,294.49010093,0.00011726,2]
[400928158,1767865201360,300.0,0.00011726,2]
[400928159,1767865201461,1200.0,0.00011726,2]
[400928160,1767865201622,300.0,0.00011726,2]
[400928161,1767865201773,409.78399203,0.00011639,2]
[400928162,1767865206169,246.0,0.00011726,2]
[400928163,1767865206752,409.78399203,0.00011639,2]
[400928164,1767865208516,200.0,0.00011727,2]
[400928165,1767865208997,500.0,0.00011726,2]
[400928166,1767865209267,500.0,0.00011726,2]
[400928167,1767865209316,604.49096287,0.00011726,2]
[400928168,1767865213509,2500.0,0.00011627,2]
[400928169,1767865221009,281.9528338,0.00011639,2]
[400928170,1767865223092,-167.62014212,0.00011727,2]
[400928171,1767865225740,-252.177763,0.00011727,2]
[400928172,1767865227646,-290.29070041,0.00011727,2]
[400928173,1767865229947,-341.157111,0.00011727,2]
[400928174,1767865232684,-165.54985788,0.00011727,2]
[400928184,1767865252093,236.78626855,0.00011726,2]
[400928185,1767865261215,300.0,0.00011726,2]
[400928186,1767865263316,1716.72184979,0.00011639,2]
[400928187,1767865293814,255.375,0.00011493,2]
[400928188,1767865293853,4259.241,0.00011493,2]
[400928199,1767865330694,164.07,9.217e-05,2]
[400928200,1767865330887,164.07,0.00010754,2]
[400928201,1767865335438,5157.254,0.00011627,2]
[400928202,1767865335461,3420.6445,0.00011627,2]
[400928203,1767865341967,2500.0,0.00011627,2]
[400928204,1767865351240,-202.37576797,0.00011637,2]
[400928205,1767865351262,-150.0,0.00011638,2]
[400928206,1767865351288,-22694.73182556,0.00011639,2]
[400928207,1767865351311,-30379.35045297,0.00011639,2]
[400928208,1767865351333,-1500.0,0.00011669,2]
[400928209,1767865351356,-300.0,0.00011683,2]
[400928210,1767865351379,-200.0,0.00011727,2]
[400928211,1767865351401,-151.0,0.00011727,2]
[400928212,1767865351423,-151.0,0.00011727,2]
[400928213,1767865351446,-500.0,0.00011727,2]
[400928214,1767865351468,-151.0,0.00011727,2]
[400928215,1767865351490,-500.0,0.00011727,2]
[400928216,1767865351514,-151.0,0.00011727,2]
[400928217,1767865351536,-500.0,0.00011727,2]
[400928218,1767865351560,-151.0,0.00011727,2]
[400928219,1767865351586,-500.0,0.00011727,2]
[400928220,1767865351609,-151.0,0.00011727,2]
[400928221,1767865351631,-500.0,0.00011727,2]
[400928222,1767865351653,-151.0,0.00011727,2]
[400928223,1767865351674,-500.0,0.00011727,2]
[400928224,1767865351695,-151.0,0.00011727,2]
[400928225,1767865351718,-500.0,0.00011727,2]
[400928226,1767865351742,-151.0,0.00011727,2]
[400928227,1767865351764,-151.0,0.00011727,2]
[400928228,1767865351785,-633.89985627,0.00011727,2]
[400928229,1767865351806,-151.0,0.00011727,2]
[400928230,1767865351828,-151.0,0.00011727,2]
[400928231,1767865351849,-151.0,0.00011727,2]
[400928232,1767865351871,-151.0,0.00011727,2]
[400928233,1767865351892,-151.0,0.00011727,2]
[400928234,1767865351913,-151.0,0.00011727,2]
[400928235,1767865351933,-151.0,0.00011727,2]
[400928236,1767865351954,-151.0,0.00011727,2]
[400928237,1767865351974,-200.0,0.00011727,2]
[400928238,1767865351995,-151.0,0.00011727,2]
[400928239,1767865352018,-151.0,0.00011727,2]
[400928240,1767865352043,-151.0,0.00011727,2]
[400928241,1767865352417,-151.0,0.00011727,2]
[400928242,1767865352439,-151.0,0.00011727,2]
[400928243,1767865352461,-151.0,0.00011727,2]
[400928244,1767865352483,-151.0,0.00011727,2]
[400928245,1767865352505,-151.0,0.00011727,2]
[400928246,1767865352531,-151.0,0.00011727,2]
[400928247,1767865352554,-151.0,0.00011727,2]
[400928248,1767865352577,-500.0,0.00011727,2]
[400928249,1767865352599,-151.0,0.00011727,2]
[400928250,1767865352622,-151.0,0.00011727,2]
[400928251,1767865352644,-151.0,0.00011727,2]
[400928252,1767865352666,-151.0,0.00011727,2]
[400928253,1767865352691,-77907.64209723,0.00011727,2]
[400928254,1767865352734,2419.22,0.00011489,2]
[400928255,1767865352996,300.0,0.000202,30]
[400928256,1767865390122,-265.35230462,0.00011637,2]
[400928279,1767865497997,369.1034,0.00011627,2]
[400928280,1767865503346,258.0,0.00020604,120]
[400928281,1767865509592,9630.9066,0.00011436,2]
[400928282,1767865509616,2598.0334,0.00011436,2]
[400928283,1767865516978,187.96855588,0.00011627,2]
[400928284,1767865524867,274.16895591,0.00011627,2]
[400928285,1767865527224,274.16895591,0.00011627,2]
[400928286,1767865538974,957.34,0.00011322,2]
[400928288,1767865546562,3072.2527,0.00011627,2]
[400928296,1767865608180,1649.29,0.0001,2]
[400928298,1767865661684,187.96855586,0.0001162,2]
[400928354,1767865664734,798.81887644,0.0001162,2]
[400928355,1767865664758,10000.01,0.0001162,2]
[400928357,1767865664780,10000.01,0.0001162,2]
[400928359,1767865664803,8400.61225239,0.0001162,2]
[400928397,1767865674087,10000.01,0.00011285,2]
[400928398,1767865674111,8294.86,0.00011285,2]
[400928557,1767865747558,-366.23046181,0.0001162,2]
[400928558,1767865747581,-61.9121221,0.0001162,2]
[400928559,1767865751655,539.01,0.00011133,2]
[400928567,1767865763059,-282.95311982,0.0001162,2]
[400928570,1767865765053,-350.0,0.00011592,2]
[400928571,1767865768347,-417.74688018,0.00011592,2]
[400928572,1767865771119,-253.76565688,0.00011592,2]
[400928573,1767865773601,-569.43,0.00011592,2]
[400928574,1767865775876,-253.80200534,0.00011592,2]
[400928575,1767865778086,9461.0,0.0001152,2]
[400928576,1767865778111,10000.01,0.0001152,2]
[400928577,1767865778134,4500.29225945,0.0001152,2]
[400928579,1767865793297,185.30320585,0.0001152,2]
[400928585,1767865832009,-185.30320584,0.0001157,2]
[400928586,1767865832018,-245.0,0.0001157,2]
[400928587,1767865832027,-195.0,0.00011581,2]
[400928588,1767865832036,-195.0,0.00011589,2]
[400928590,1767865832046,-300.0,0.00011591,2]
[400928591,1767865832056,-300.0,0.00011591,2]
[400928592,1767865832065,-428.83170562,0.00011591,2]
[400928593,1767865832076,-771.16829438,0.00011591,2]
[400928594,1767865832085,-3004.61893063,0.00011592,2]
[400928595,1767865832100,-1343.80743329,0.00011592,2]
[400928596,1767865832110,-292.97700002,0.00011592,2]
[400928597,1767865832121,-2339.23571831,0.00011592,2]
[400928598,1767865832132,-888.14621228,0.00011592,2]
[400928599,1767865832146,-2031.76104923,0.00011592,2]
[400928600,1767865832171,-8823.48414865,0.00011592,2]
[400928601,1767865832182,-590.20062203,0.00011592,2]
[400928602,1767865832193,-438577.1030224,0.00011592,2]
[400928603,1767865832203,-30366.10182309,0.00011592,2]
[400928604,1767865832214,-114532.8332424,0.00011592,2]
[400928605,1767865832225,-59192.8453814,0.00011592,2]
[400928606,1767865832240,-1088.10086567,0.00011592,2]
[400928607,1767865832250,-689.9252812,0.00011592,2]
[400928608,1767865832261,-506.09898827,0.00011592,2]
[400928609,1767865832272,-575.75,0.00011592,2]
[400928611,1767865832286,-501.00324206,0.00011592,2]
[400928625,1767865838127,-400.0,0.00011592,2]
[400928626,1767865838139,-52830.2209683,0.00011592,2]
[400928627,1767865838150,-4071.55773437,0.00011592,2]
[400928628,1767865838180,-275509.483794,0.00011592,2]
[400928629,1767865838189,-20242.3004,0.00011593,2]
[400928630,1767865838199,-2500.0,0.00011593,2]
[400928631,1767865838210,-225.48366904,0.0001162,2]
[400928632,1767865838219,-185.30320584,0.0001162,2]
[400928633,1767865838229,-300.0,0.00011627,2]
[400928634,1767865838239,-250.0,0.00011627,2]
[400928635,1767865838248,-300.0,0.00011635,2]
[400928636,1767865838258,-1561.43224408,0.00011683,2]
[400928637,1767865838268,-150.0,0.0001169,2]
[400928638,1767865838277,-1200.0,0.0001169,2]
[400928639,1767865838287,-500.0,0.00011691,2]
[400928640,1767865838297,-500.0,0.00011691,2]
[400928641,1767865838309,-500.0,0.00011691,2]
[400928642,1767865838319,-500.0,0.00011691,2]
[400928643,1767865838329,-500.0,0.00011691,2]
[400928644,1767865838339,-500.0,0.00011691,2]
[400928645,1767865838349,-500.0,0.00011691,2]
[400928646,1767865838359,-500.0,0.00011691,2]
[400928647,1767865838369,-267.67313936,0.00011691,2]
[400928648,1767865838379,-500.0,0.00011691,2]
[400928649,1767865838388,-500.0,0.00011691,2]
[400928650,1767865838398,-500.0,0.00011691,2]
[400928651,1767865838408,-500.0,0.00011691,2]
[400928652,1767865838417,-500.0,0.00011691,2]
[400928654,1767865838427,-500.0,0.00011691,2]
[400928655,1767865838436,-500.0,0.00011691,2]
[400928657,1767865838446,-2028.45,0.00011691,2]
[400928658,1767865838455,-248.02149213,0.00011691,2]
[400928659,1767865838465,-14528.41498042,0.00011692,2]
[400928660,1767865838474,-500.0,0.00011692,2]
[400928661,1767865838484,-206.14307065,0.00011692,2]
[400928662,1767865838494,-165.75038798,0.00011692,2]
[400928663,1767865838503,-215.0405469,0.00011692,2]
[400928664,1767865838512,-448.1433445,0.00011692,2]
[400928665,1767865838522,-500.0,0.00011692,2]
[400928666,1767865838531,-23366.1324032,0.00011693,2]
[400928667,1767865838541,-921300.9389016,0.00011693,2]
[400928668,1767865838551,-156.0,0.00011699,2]
[400928669,1767865838561,-500.0,0.0001172,2]
[400928670,1767865838571,-151.0,0.0001172,2]
[400928671,1767865838580,-151.0,0.0001172,2]
[400928672,1767865838590,-151.0,0.0001172,2]
[400928673,1767865838599,-151.0,0.0001172,2]
[400928674,1767865838609,-151.0,0.0001172,2]
[400928675,1767865838619,-151.0,0.0001172,2]
[400928676,1767865838628,-151.0,0.0001172,2]
[400928677,1767865838638,-151.0,0.0001172,2]
[400928678,1767865838652,-151.0,0.0001172,2]
[400928679,1767865838662,-151.0,0.0001172,2]
[400928680,1767865838672,-151.0,0.0001172,2]
[400928682,1767865838682,-151.0,0.0001172,2]
[400928683,1767865838693,-151.0,0.0001172,2]
[400928685,1767865838702,-151.0,0.0001172,2]
[400928686,1767865838712,-500.0,0.0001172,2]
[400928688,1767865838723,-151.0,0.0001172,2]
[400928690,1767865838732,-151.0,0.0001172,2]
[400928692,1767865838741,-151.0,0.0001172,2]
[400928694,1767865838751,-151.0,0.0001172,2]
[400928696,1767865838760,-151.0,0.0001172,2]
[400928698,1767865838770,-151.0,0.0001172,2]
[400928700,1767865838779,-202.84026902,0.0001172,2]
[400928702,1767865838789,-200.0,0.0001172,2]
[400928704,1767865838798,-151.0,0.0001172,2]
[400928706,1767865838807,-151.0,0.0001172,2]
[400928708,1767865838817,-151.0,0.0001172,2]
[400928710,1767865838826,-151.0,0.0001172,2]
[400928712,1767865838836,-151.0,0.0001172,2]
[400928714,1767865838845,-151.0,0.0001172,2]
[400928716,1767865838855,-151.0,0.0001172,2]
[400928718,1767865838864,-151.0,0.0001172,2]
[400928720,1767865838874,-151.0,0.0001172,2]
[400928722,1767865838884,-200.0,0.0001172,2]
[400928724,1767865838893,-151.0,0.0001172,2]
[400928726,1767865838902,-151.0,0.0001172,2]
[400928728,1767865838913,-999.99,0.00011739,2]
[400928730,1767865838923,-8882.54,0.00011739,2]
[400928732,1767865838933,-9999.99,0.00011739,2]
[400928734,1767865838942,-9999.99,0.00011739,2]
[400928736,1767865838952,-150.99,0.00011739,2]
[400928738,1767865838961,-5354.27,0.00011739,2]
[400928740,1767865838970,-150.99,0.00011739,2]
[400928742,1767865838980,-1000.0,0.00011828,2]
[400928744,1767865838990,-200.0,0.00011844,2]
[400928747,1767865839000,-1000.0,0.00011949,2]
[400928749,1767865839009,-200.0,0.00011963,2]
[400928750,1767865839019,-2028.45,0.00011965,2]
[400928753,1767865839029,-500.0,0.00011994,2]
[400928754,1767865839039,-200.0,0.00012,2]
[400928756,1767865839049,-211.64498178,0.00012016,2]
[400928759,1767865839059,-23961.30225944,0.00012055,2]
[400928761,1767865839069,-200.0,0.00012082,2]
[400928762,1767865839079,-200.0,0.00012203,2]
[400928765,1767865839089,-29199.4511288,0.00012217,2]
[400928766,1767865839099,-2028.45,0.00012239,2]
[400928769,1767865839109,-500.0,0.00012268,2]
[400928770,1767865839119,-500.0,0.00012268,2]
[400928772,1767865839128,-200.0,0.00012268,2]
[400928774,1767865839137,-164.07,0.0001229,2]
[400928776,1767865839147,-259311.53090057,0.00012374,2]
[400928778,1767865839156,-2028.45,0.00012513,2]
[400928780,1767865839166,-600.0,0.00012522,2]
[400928783,1767865839176,-413.91,0.00012522,2]
[400928785,1767865839185,-500.0,0.00012542,2]
[400928787,1767865839195,-182.10117033,0.00012542,2]
[400928789,1767865839204,-561.0,0.00012542,2]
[400928791,1767865839214,-426.0,0.00012542,2]
[400928793,1767865839223,-150.0,0.00012542,2]
[400928795,1767865839233,-150.49525617,0.00012542,2]
[400928797,1767865839242,-150.0,0.00012542,2]
[400928799,1767865839251,-150.0,0.00012542,2]
[400928801,1767865839261,-500.0,0.00012542,2]
[400928803,1767865839270,-500.0,0.00012542,2]
[400928805,1767865839279,-288.61019467,0.00012542,2]
[400928807,1767865839288,-150.0,0.00012542,2]
[400928809,1767865839297,-500.0,0.00012542,2]
[400928811,1767865839306,-250.0,0.00012542,2]
[400928813,1767865839316,-500.0,0.00012548,2]
[400928815,1767865839325,-23961.30225944,0.00012591,2]
[400928817,1767865839336,-561.0,0.00012597,2]
[400928818,1767865839347,-426.0,0.00012597,2]
[400928821,1767865839356,-231.03492311,0.00012597,2]
[400928823,1767865839367,-184.06920116,0.00012597,2]
[400928825,1767865839376,-150.0,0.00012597,2]
[400928827,1767865839386,-500.0,0.00012597,2]
[400928829,1767865839396,-500.0,0.00012597,2]
[400928831,1767865839405,-150.0,0.00012597,2]
[400928833,1767865839414,-500.0,0.00012597,2]
[400928835,1767865839423,-561.0,0.00012652,2]
[400928837,1767865839432,-426.0,0.00012652,2]
[400928839,1767865839441,-150.0,0.00012652,2]
[400928841,1767865839450,-500.0,0.00012652,2]
[400928843,1767865839460,-500.0,0.00012652,2]
[400928845,1767865839469,-206.22263087,0.00012652,2]
[400928847,1767865839478,-500.0,0.00012652,2]
[400928849,1767865839487,-1050.7,0.00012674,2]
[400928851,1767865839496,-561.0,0.00012706,2]
[400928853,1767865839505,-426.0,0.00012706,2]
[400928855,1767865839514,-150.0,0.00012706,2]
[400928857,1767865839524,-231.23799714,0.00012706,2]
[400928859,1767865839534,-500.0,0.00012706,2]
[400928861,1767865839543,-500.0,0.00012706,2]
[400928863,1767865839553,-297.19656006,0.00012727,2]
[400928865,1767865839563,-195.0,0.00012727,2]
[400928867,1767865839573,-289.75584827,0.00012727,2]
[400928869,1767865839582,-300.0,0.00012727,2]
[400928871,1767865839591,-420.0,0.0001273,2]
[400928873,1767865839600,-420.0,0.0001273,2]
[400928875,1767865839609,-500.0,0.00012732,2]
[400928877,1767865839618,-1680.0,0.0001275,2]
[400928879,1767865839628,-561.0,0.00012761,2]
[400928881,1767865839637,-426.0,0.00012761,2]
[400928883,1767865839650,-150.0,0.00012761,2]
[400928885,1767865839659,-500.0,0.00012761,2]
[400928887,1767865839670,-500.0,0.00012761,2]
[400928889,1767865839680,-255.0,0.00012765,2]
[400928891,1767865839690,-300.0,0.00012782,2]
[400928893,1767865839699,-250.0,0.00012782,2]
[400928895,1767865839709,-2028.45,0.00012787,2]
[400928897,1767865839720,-195.0,0.00012795,2]
[400928899,1767865839730,-300.0,0.00012795,2]
[400928901,1767865839739,-195.0,0.00012798,2]
[400928903,1767865839748,-193.0,0.00012798,2]
[400928905,1767865839758,-29199.4511288,0.00012814,2]
[400928907,1767865839767,-500.0,0.00012816,2]
[400928909,1767865839776,-561.0,0.00012816,2]
[400928911,1767865839786,-426.0,0.00012816,2]
[400928913,1767865839795,-189.0183163,0.00012816,2]
[400928915,1767865839804,-500.0,0.00012816,2]
[400928917,1767865839813,-500.0,0.00012816,2]
[400928919,1767865839823,-500.0,0.00012816,2]
[400928921,1767865839832,-1680.0,0.00012837,2]
[400928923,1767865839842,-561.0,0.00012871,2]
[400928925,1767865839851,-426.0,0.00012871,2]
[400928927,1767865839860,-500.0,0.00012871,2]
[400928929,1767865839869,-500.0,0.00012871,2]
[400928932,1767865839879,-1442.74102884,0.0001291,2]
[400928935,1767865839889,-312.84,0.00012914,2]
[400928938,1767865839898,-561.0,0.00012926,2]
[400928940,1767865839907,-426.0,0.00012926,2]
[400928942,1767865839916,-500.0,0.00012926,2]
[400928944,1767865839925,-500.0,0.00012926,2]
[400928946,1767865839934,-561.0,0.0001298,2]
[400928948,1767865839942,-426.0,0.0001298,2]
[400928950,1767865839951,-500.0,0.0001298,2]
[400928952,1767865839960,-500.0,0.0001298,2]
[400928954,1767865839970,-561.0,0.00013035,2]
[400928956,1767865839985,-426.0,0.00013035,2]
[400928958,1767865839994,-500.0,0.00013035,2]
[400928960,1767865840004,-500.0,0.00013035,2]
[400928962,1767865840012,-2028.45,0.00013061,2]
[400928964,1767865840022,-500.0,0.0001309,2]
[400928966,1767865840032,-561.0,0.0001309,2]
[400928968,1767865840041,-426.0,0.0001309,2]
[400928969,1767865840050,-500.0,0.0001309,2]
[400928971,1767865840060,-471.85856957,0.0001309,2]
[400928973,1767865840069,-23961.30225944,0.00013126,2]
[400928975,1767865840079,-561.0,0.00013145,2]
[400928977,1767865840088,-426.0,0.00013145,2]
[400928979,1767865840097,-209.91190666,0.00013145,2]
[400928981,1767865840107,-5285.48102777,0.00013163,2]
[400928984,1767865840116,-561.0,0.000132,2]
[400928988,1767865840126,-426.0,0.000132,2]
[400928990,1767865840135,-561.0,0.00013254,2]
[400928993,1767865840144,-426.0,0.00013254,2]
[400928996,1767865840154,-561.0,0.00013309,2]
[400928999,1767865840163,-426.0,0.00013309,2]
[400929002,1767865840172,-2028.45,0.00013335,2]
[400929005,1767865840181,-500.0,0.00013364,2]
[400929008,1767865840191,-561.0,0.00013364,2]
[400929011,1767865840200,-426.0,0.00013364,2]
[400929013,1767865840209,-500.0,0.00013364,2]
[400929015,1767865840217,-350.09928187,0.00013394,2]
[400929017,1767865840227,-29199.4511288,0.00013411,2]
[400929019,1767865840236,-426.0,0.00013419,2]
[400929021,1767865840245,-561.0,0.00013419,2]
[400929023,1767865840254,-1076.0,0.00013424,2]
[400929025,1767865840263,-620.05,0.0001346,2]
[400929027,1767865840272,-426.0,0.00013474,2]
[400929029,1767865840281,-561.0,0.00013474,2]
[400929031,1767865840291,-1076.0,0.00013479,2]
[400929033,1767865840300,-23366.1324032,0.00013484,2]
[400929035,1767865840309,-921300.9389016,0.00013491,2]
[400929037,1767865840319,-150.0,0.00013516,2]
[400929039,1767865840328,-426.0,0.00013528,2]
[400929041,1767865840337,-561.0,0.00013528,2]
[400929043,1767865840346,-1076.0,0.00013534,2]
[400929045,1767865840355,-426.0,0.00013583,2]
[400929047,1767865840364,-561.0,0.00013583,2]
[400929049,1767865840374,-1076.0,0.00013588,2]
[400929051,1767865840383,-500.0,0.00013589,2]
[400929053,1767865840393,-2028.45,0.00013609,2]
[400929055,1767865840401,-500.0,0.00013638,2]
[400929056,1767865840410,-426.0,0.00013638,2]
[400929058,1767865840420,-561.0,0.00013638,2]
[400929060,1767865840429,-1076.0,0.00013643,2]
[400929062,1767865840438,-4220.10541393,0.00013652,2]
[400929064,1767865840447,-23961.30225944,0.00013661,2]
[400929066,1767865840456,-426.0,0.00013693,2]
[400929069,1767865840466,-561.0,0.00013693,2]
[400929070,1767865840475,-1076.0,0.00013698,2]
[400929072,1767865840485,-265.20667468,0.00013698,2]
[400929075,1767865840494,-500.0,0.00013698,2]
[400929076,1767865840503,-500.0,0.00013698,2]
[400929079,1767865840512,-500.0,0.00013698,2]
[400929081,1767865840523,-500.0,0.00013698,2]
[400929083,1767865840532,-558.43229755,0.00013698,2]
[400929085,1767865840541,-483.79003433,0.00013698,2]
[400929087,1767865840551,-500.0,0.00013698,2]
[400929089,1767865840560,-500.0,0.00013698,2]
[400929091,1767865840569,-500.0,0.00013698,2]
[400929093,1767865840578,-500.0,0.00013698,2]
[400929094,1767865840587,-500.0,0.00013698,2]
[400929096,1767865840595,-500.0,0.00013698,2]
[400929098,1767865840605,-500.0,0.00013698,2]
[400929100,1767865840613,-345.3210989,0.00013698,2]
[400929102,1767865840623,-500.0,0.00013698,2]
[400929105,1767865840641,-522.48563019,0.00013698,2]
[400929107,1767865840657,-642.66,0.00013698,2]